bitfinex/quotes_ETHUSD_20250620
["timestamp","ask_amount","ask_price","bid_price","bid_amount"]
[1750427240400,12.42428891,2546.3,2545.8,3.92796735]
[1750427240596,12.42428891,2546.3,2545.9,3.92785836]
[1750427240917,12.42434395,2546.3,2545.8,3.92794772]
[1750427241115,3.92752399,2546.2,2545.7,3.92816489]
[1750427241298,3.92768617,2546.1,2545.6,3.9283271]
[1750427241633,8.497,2546.3,2545.5,1.07891]
[1750427241799,3.92754646,2546.2,2545.7,3.92818736]
[1750427242002,8.497,2546.3,2545.8,3.92796612]
[1750427242197,3.92745405,2546.2,2545.4,0.7891]
[1750427242532,3.92745405,2546.2,2545.7,3.92808906]
[1750427242735,3.92760341,2546.1,2545.6,3.92825714]
[1750427242919,12.42433406,2546.3,2545.4,3.92854927]
[1750427242920,3.92792554,2545.9,2545.4,3.92854927]
[1750427243088,6.676,2545.8,2545.4,3.92854927]
[1750427243284,1.837,2545.7,2545.4,3.92858523]
[1750427243486,2.5812,2546.0,2545.9,3.92788404]
[1750427243789,1.837,2546.0,2545.1,0.8235]
[1750427243985,5.76488384,2546.0,2545.4,3.92851465]
[1750427244186,5.76488384,2546.0,2544.9,0.2133535]
[1750427244187,3.92927308,2545.0,2544.9,0.2133535]
[1750427244411,10.0,2545.0,2544.9,0.2133535]
[1750427244691,0.7442,2545.4,2544.9,0.2133535]
[1750427244892,10.0,2545.2,2545.0,3.92923728]
[1750427245412,10.0,2545.2,2544.9,0.2133535]
[1750427245796,13.92896827,2545.2,2544.9,0.2133535]
[1750427246425,10.0,2545.2,2544.9,0.2133535]
[1750427246732,10.0,2545.2,2544.9,4.14263669]
[1750427247094,10.0,2545.2,2544.9,0.2133535]
[1750427248014,4.67290596,2545.4,2544.9,0.2133535]
[1750427248205,10.0,2545.2,2544.9,4.14266049]
[1750427248414,8.517,2545.1,2544.9,0.2133535]
[1750427248793,4.67347308,2545.0,2544.9,0.2133535]
[1750427248991,14.67347308,2545.0,2544.9,0.2133535]
[1750427252394,15.22347308,2545.0,2544.9,0.2133535]
[1750427252596,15.5853474,2545.0,2544.9,0.2133535]
[1750427252796,24.0993474,2545.0,2544.9,0.2133535]
[1750427253033,24.84707289,2545.0,2544.9,0.2133535]
[1750427253233,24.48527408,2545.0,2544.9,0.2133535]
[1750427253410,24.48519303,2545.0,2544.9,0.2133535]
[1750427253615,24.09927064,2545.0,2544.9,0.2133535]
[1750427254060,15.22347308,2545.0,2544.9,0.2133535]
[1750427254259,23.71147308,2545.0,2544.9,0.2133535]
[1750427254561,38.15446246,2545.0,2544.9,0.2133535]
[1750427255224,38.15346246,2545.0,2544.9,0.2133535]
[1750427255438,38.15446246,2545.0,2544.9,0.2133535]
[1750427256071,29.12146246,2545.0,2544.9,0.2133535]
[1750427256530,37.60346246,2545.0,2544.9,0.2133535]
[1750427256731,29.12146246,2545.0,2544.9,0.2133535]
[1750427256934,38.15246246,2545.0,2544.9,0.2133535]
[1750427258527,29.12146246,2545.0,2544.9,0.2133535]
[1750427258925,37.59746246,2545.0,2544.9,0.2133535]
[1750427259525,29.12146246,2545.0,2544.9,0.2133535]
[1750427259757,37.59646246,2545.0,2544.9,0.2133535]
[1750427260458,29.12146246,2545.0,2544.9,0.2133535]
[1750427260658,37.59646246,2545.0,2544.9,0.2133535]
[1750427261063,9.438,2545.1,2544.9,0.2133535]
[1750427261442,18.475,2545.0,2544.9,0.2133535]
[1750427261643,22.40427308,2545.0,2544.9,0.2133535]
[1750427262043,10.0,2545.0,2544.9,0.2133535]
[1750427262249,18.476,2545.0,2544.9,0.2133535]
[1750427262768,22.40527308,2545.0,2544.9,0.2133535]
[1750427262971,36.85326246,2545.0,2544.9,0.2133535]
[1750427263576,37.59746246,2545.0,2544.9,0.2133535]
[1750427263886,10.7442,2545.0,2544.9,0.2133535]
[1750427264043,10.0,2545.0,2544.9,0.2133535]
[1750427264244,18.476,2545.0,2544.9,0.2133535]
[1750427265306,22.40527308,2545.0,2544.9,0.2133535]
[1750427265477,36.85326246,2545.0,2544.9,0.2133535]
[1750427266162,39.27334421,2545.0,2544.9,0.2133535]
[1750427266368,0.7442,2544.7,2544.0,0.7941]
[1750427266580,10.0,2544.0,2541.6,5.70937204]
[1750427266754,10.0,2544.0,2540.2,10.13636902]
[1750427266755,40.0,2541.6,2540.1,3.90100687]
[1750427266955,14.44798938,2541.3,2539.8,6.47007095]
[1750427267198,14.44798938,2540.6,2539.8,0.2133535]
[1750427267397,14.48674735,2540.2,2539.8,0.2133535]
[1750427267607,0.55,2540.0,2539.8,0.2133535]
[1750427267895,10.7442,2540.9,2539.9,3.93716288]
[1750427268098,10.7442,2540.9,2540.0,0.41505164]
[1750427268099,0.7442,2540.9,2540.0,0.41505164]
[1750427268304,2.34165351,2541.1,2539.9,0.8274]
[1750427268456,2.34165351,2541.1,2540.0,2.003]
[1750427268654,2.34165351,2541.1,2540.0,0.03936584]
[1750427268885,2.34165351,2541.1,2539.8,0.2133535]
[1750427268886,11.06346978,2540.3,2539.8,0.2133535]
[1750427269087,7.166,2540.3,2539.8,0.2133535]
[1750427269287,2.34165351,2541.1,2539.8,0.2133535]
[1750427269500,10.0,2540.9,2539.8,0.2133535]
[1750427269704,11.06346978,2540.5,2539.8,0.2133535]
[1750427270007,17.399,2540.6,2539.8,0.2133535]
[1750427270223,17.433,2540.6,2539.8,0.2133535]
[1750427270508,0.7442,2540.8,2539.8,0.2133535]
[1750427270671,1.29530193,2540.5,2539.8,0.2133535]
[1750427270859,2.34165351,2541.1,2539.9,10.81747082]
[1750427271059,0.7442,2541.7,2540.0,3.93700787]
[1750427271060,7.691,2541.6,2540.0,3.93700787]
[1750427271285,3.93452943,2541.6,2540.4,3.93626715]
[1750427271493,7.692,2541.5,2540.3,2.441]
[1750427271664,7.692,2541.5,2540.7,3.93587248]
[1750427271861,7.692,2541.5,2540.7,0.39358725]
[1750427272173,0.7442,2542.7,2540.9,0.7737]
[1750427272376,8.304,2542.3,2541.5,3.9346445]
[1750427272694,7.694,2542.2,2541.5,3.9346445]
[1750427272860,7.694,2542.2,2541.6,3.93445266]
[1750427273065,7.694,2542.2,2541.7,3.93427622]
[1750427273377,7.694,2542.2,2541.2,2.441]
[1750427273560,7.694,2542.2,2541.9,3.93401926]
[1750427273895,3.93277184,2542.8,2541.7,3.9342229]
[1750427274063,7.686,2542.7,2541.8,4.72939014]
[1750427274402,7.686,2542.7,2541.8,0.7952]
[1750427274702,5.26199553,2542.9,2542.1,3.93371314]
[1750427275001,7.674,2542.8,2541.9,0.03933803]
[1750427275322,7.671,2542.7,2541.8,0.7952]
[1750427275595,7.671,2542.7,2542.3,3.93343115]
[1750427275800,7.671,2542.7,2542.4,3.93320183]
[1750427276210,7.671,2542.7,2542.4,3.93317193]
[1750427276616,7.671,2542.7,2542.3,0.03933024]
[1750427276794,1.32945627,2542.9,2542.0,6.37484173]
[1750427277118,1.32945627,2542.9,2542.8,3.93267264]
[1750427277316,3.93128079,2543.8,2543.1,3.93208398]
[1750427277605,3.93121946,2543.8,2543.1,3.93217625]
[1750427277810,10.0,2543.8,2543.0,3.93222242]
[1750427277975,3.93132917,2543.7,2542.9,3.97181179]
[1750427278320,3.93145547,2543.6,2543.1,3.93220174]
[1750427278498,3.93172355,2543.5,2542.9,3.93243109]
[1750427278887,3.93174639,2543.4,2542.8,3.97197668]
[1750427279093,3.93143416,2543.7,2543.0,3.93227506]
[1750427279415,3.93160476,2543.5,2542.9,3.93244354]
[1750427279818,3.93062779,2544.2,2543.0,3.93232444]
[1750427280022,3.93136642,2543.7,2543.1,3.93207433]
[1750427280223,3.93136642,2543.7,2542.8,2.48032185]
[1750427280421,3.93160228,2543.5,2542.9,3.93243341]
[1750427280633,10.0,2543.8,2542.7,0.8114]
[1750427280786,10.0,2543.8,2542.7,3.93278644]
[1750427280787,3.93143576,2543.6,2542.7,3.93278644]
[1750427280985,3.93175764,2543.4,2542.8,3.93255407]
[1750427281524,3.93175764,2543.4,2542.4,3.93329137]
[1750427281525,6.93177262,2543.4,2542.3,3.265]
[1750427281686,3.93243984,2543.0,2542.4,3.93320783]
[1750427281892,3.9320541,2543.2,2542.3,0.824]
[1750427282087,10.0,2543.3,2541.9,0.7739]
[1750427282290,3.93222683,2543.1,2542.6,3.93293676]
[1750427282514,7.611,2543.2,2542.8,3.93259445]
[1750427282697,7.611,2543.2,2542.4,3.93326395]
[1750427283030,7.611,2543.2,2542.9,3.93238477]
[1750427283429,7.611,2543.2,2542.9,3.93243888]
[1750427283922,7.611,2543.2,2542.6,3.93295711]
[1750427284084,7.611,2543.2,2542.7,3.93269928]
[1750427284290,3.93206727,2543.2,2542.6,3.93292875]
[1750427284529,3.93212826,2543.2,2542.2,2.441]
[1750427284725,3.93243408,2543.0,2541.9,7.14881415]
[1750427284919,3.93243408,2543.0,2542.5,3.93311644]
[1750427285098,0.39324341,2542.9,2542.5,3.93311644]
[1750427285402,4.32577944,2542.9,2542.4,3.93328118]
[1750427285704,0.39324341,2542.9,2542.5,3.9331364]
[1750427286230,0.39324341,2542.9,2542.1,3.93373206]
[1750427286394,0.39324341,2542.9,2542.5,3.93312008]
[1750427286593,3.93274048,2542.8,2542.3,3.93337325]
[1750427286788,0.43259839,2542.7,2541.9,0.7739]
[1750427287215,11.06346978,2542.5,2541.0,0.767]
[1750427287418,0.7442,2542.2,2541.0,0.767]
[1750427287618,10.7442,2542.2,2541.0,4.70241302]
[1750427287923,10.7442,2542.2,2541.1,3.9353036]
[1750427287924,3.93375555,2542.1,2541.1,3.9353036]
[1750427288127,3.93375555,2542.1,2541.6,3.93449173]
[1750427288626,0.7442,2542.2,2541.3,0.03934816]
[1750427288811,0.7442,2542.2,2541.7,3.93425208]
[1750427288812,7.571,2542.1,2541.7,3.93425208]
[1750427289016,0.35868579,2542.0,2541.8,3.93418786]
[1750427289322,7.571,2542.1,2541.8,3.93421984]
[1750427289323,0.35868579,2541.9,2541.8,3.93421984]
[1750427289527,0.35868579,2541.9,2541.5,3.93458197]
[1750427289705,0.71740705,2541.8,2541.4,3.93476136]
[1750427290047,0.71740705,2541.7,2541.3,3.93484463]
[1750427290203,0.71740705,2541.6,2541.3,3.93491487]
[1750427290409,0.71740705,2541.5,2541.2,3.93508931]
[1750427290620,0.71740705,2541.4,2541.1,3.93524169]
[1750427290807,0.35872126,2541.3,2541.1,3.93524169]
[1750427291022,3.93440938,2541.7,2541.2,3.93509476]
[1750427291327,0.71999807,2541.6,2541.4,3.93476817]
[1750427291525,0.71999807,2541.6,2541.1,3.93522362]
[1750427291526,0.71999079,2541.5,2541.1,3.93522362]
[1750427291746,0.35999726,2541.4,2541.1,3.93522362]
[1750427291920,3.9346213,2541.6,2541.1,3.93522362]
[1750427292118,0.72081778,2541.5,2541.4,3.93483906]
[1750427292318,6.29192078,2542.0,2541.4,3.93483906]
[1750427292512,0.93705518,2541.9,2540.5,3.93622931]
[1750427292714,0.72081349,2541.8,2541.6,3.93445507]
[1750427292914,0.72091002,2541.7,2541.6,3.93437793]
[1750427293153,0.72091484,2541.7,2541.4,3.93477194]
[1750427293320,7.536,2541.9,2540.6,0.7685]
[1750427293321,3.93506046,2541.3,2540.8,3.93570009]
[1750427293641,0.72087511,2541.2,2540.8,3.93563954]
[1750427293817,0.72087511,2541.1,2540.8,3.93563954]
[1750427294018,0.72087511,2541.0,2540.0,3.93700787]
[1750427294202,0.72087511,2540.9,2540.6,3.93597316]
[1750427294406,0.72087511,2540.8,2540.7,3.93591795]
[1750427294634,0.72087511,2540.8,2540.4,3.93633393]
[1750427294845,0.36045511,2540.7,2540.5,3.93613257]
[1750427295056,0.36098889,2540.6,2540.4,3.93628306]
[1750427295401,0.36098707,2540.5,2539.8,0.62842839]
[1750427295564,0.39355076,2541.0,2539.8,0.62842839]
[1750427295565,0.36098707,2540.4,2540.3,3.93644988]
[1750427296630,7.518,2541.0,2540.4,3.93630979]
[1750427296962,0.72155052,2540.9,2540.8,3.93576826]
[1750427297109,0.3607835,2540.9,2540.8,3.93576826]
[1750427297509,7.513,2541.4,2541.1,3.93527889]
[1750427297748,0.93775068,2541.3,2541.2,3.93514874]
[1750427297950,0.7442,2541.5,2541.0,3.93541657]
[1750427298154,0.72150573,2541.4,2541.2,3.9351114]
[1750427298364,0.36075292,2541.3,2541.2,3.93514874]
[1750427298654,0.7442,2541.5,2541.2,3.93514874]
[1750427298655,0.7442,2541.8,2541.3,3.9349939]
[1750427298850,4.65606082,2541.7,2541.2,3.93514874]
[1750427299058,4.65671231,2541.6,2541.1,3.93522905]
[1750427299354,4.65693002,2541.5,2540.9,3.93546362]
[1750427299581,0.72212599,2541.4,2541.0,3.93538744]
[1750427299751,0.36081603,2541.3,2541.1,3.93517336]
[1750427300072,0.36081603,2541.2,2541.0,3.9353734]
[1750427300220,0.36081603,2541.1,2541.0,3.9353734]
[1750427300840,3.93478522,2541.5,2541.0,3.9353734]
[1750427301046,0.36130829,2541.4,2540.6,3.93607809]
[1750427301243,0.36130829,2541.3,2541.2,3.93513545]
[1750427301454,4.67854307,2541.8,2541.2,3.93513545]
[1750427301455,3.0,2541.4,2541.3,3.9349939]
[1750427301631,3.361319,2541.4,2541.2,3.93507907]
[1750427301836,0.361319,2541.3,2541.2,3.93507907]
[1750427302218,4.67849998,2541.8,2541.2,3.93507907]
[1750427302419,4.67849998,2541.8,2541.1,3.93528986]
[1750427302420,0.93981199,2541.7,2541.3,3.93497854]
[1750427302747,0.93981199,2541.7,2540.6,6.29507128]
[1750427302748,0.36147695,2541.6,2540.9,3.93556274]
[1750427303056,4.29622668,2541.5,2541.0,3.93534461]
[1750427303218,8.2362,2541.8,2540.5,7.49]
[1750427303219,4.29632525,2541.4,2540.5,3.93613048]
[1750427303425,4.29656801,2541.3,2540.4,3.93636216]
[1750427303747,0.36156783,2541.2,2540.7,3.93583107]
[1750427303947,0.36156783,2541.1,2540.6,3.93604573]
[1750427304152,0.36156783,2541.0,2540.9,3.93561336]
[1750427304464,0.36156783,2541.0,2540.8,3.93570915]
[1750427304631,3.93518426,2541.2,2540.7,3.93586154]
[1750427304841,5.04102826,2541.1,2540.6,3.93599119]
[1750427305052,0.36145094,2541.0,2540.6,3.93599119]
[1750427305220,0.36145094,2540.9,2540.6,3.93599119]
[1750427305421,3.93546802,2541.0,2540.6,3.93599119]
[1750427305624,0.7442,2541.1,2540.7,3.93591748]
[1750427305625,0.36132007,2540.9,2540.7,3.93591748]
[1750427305828,4.6795922,2541.1,2540.7,3.93591748]
[1750427307021,0.36123603,2539.9,2539.8,0.2133535]
[1750427307224,18.31272504,2539.9,2539.8,0.2133535]
[1750427307421,22.66933943,2539.9,2539.8,0.2133535]
[1750427307741,25.99133943,2539.9,2539.8,0.2133535]
[1750427307925,26.45929865,2539.9,2539.8,0.2133535]
[1750427308227,26.4586583,2539.9,2539.8,0.2133535]
[1750427308432,26.45743658,2539.9,2539.8,0.2133535]
[1750427308654,26.45743362,2539.9,2539.8,0.2133535]
[1750427308832,25.90743362,2539.9,2539.8,0.2133535]
[1750427309026,25.90637378,2539.9,2539.8,0.2133535]
[1750427309367,19.23919423,2539.9,2539.8,0.2133535]
[1750427309566,22.9603433,2539.9,2539.8,0.2133535]
[1750427309722,19.02318042,2539.9,2539.8,0.2133535]
[1750427310052,18.55267932,2539.9,2539.8,0.2133535]
[1750427310228,1.10367932,2539.9,2539.8,4.15067139]
[1750427310459,7.445,2540.8,2539.8,4.15067139]
[1750427310665,3.93632264,2540.5,2540.0,3.93697704]
[1750427310999,3.93632264,2540.5,2539.8,4.15067139]
[1750427311000,3.93668871,2540.3,2539.8,0.2133535]
[1750427311201,3.93693301,2540.1,2539.8,0.2133535]
[1750427311366,0.35956457,2540.0,2539.8,0.2133535]
[1750427311901,14.29672745,2539.9,2539.8,0.2133535]
[1750427312200,10.35957647,2539.9,2539.8,0.2133535]
[1750427312398,10.35953613,2539.9,2539.8,0.2133535]
[1750427312563,22.19037463,2539.9,2539.8,0.2133535]
[1750427312966,18.25321175,2539.9,2539.8,0.2133535]
[1750427313168,17.89367562,2539.9,2539.8,0.2133535]
[1750427313368,10.46067562,2539.9,2539.8,0.2133535]
[1750427313568,21.37216288,2539.9,2539.8,0.2133535]
[1750427313900,10.0,2539.9,2539.8,0.2133535]
[1750427314103,17.433,2539.9,2539.8,0.2133535]
[1750427314604,21.37016288,2539.9,2539.8,0.2133535]
[1750427315596,22.66436288,2539.9,2539.8,0.2133535]
[1750427316716,25.11436288,2539.9,2539.8,0.2133535]
[1750427317220,22.66436288,2539.9,2539.8,0.2133535]
[1750427317517,3.93902082,2538.8,2538.2,3.9396974]
[1750427317669,7.41,2538.8,2538.2,3.93975345]
[1750427318011,11.34894967,2538.8,2538.3,3.9395167]
[1750427318212,7.41,2538.8,2538.0,0.3]
[1750427318403,7.41,2538.8,2538.4,3.93941419]
[1750427318598,7.41,2538.8,2538.3,3.93958987]
[1750427318774,7.41,2538.8,2538.1,0.03939571]
[1750427318973,7.41,2538.8,2538.5,3.93932223]
[1750427319202,7.41,2538.8,2538.3,3.93954808]
[1750427319503,7.41,2538.8,2538.5,3.93931861]
[1750427319701,13.93902889,2538.7,2538.2,3.93972299]
[1750427319911,3.93918398,2538.6,2538.1,3.93983575]
[1750427320217,3.93919792,2538.6,2538.1,3.93988462]
[1750427320518,0.8242,2539.0,2538.1,3.93995508]
[1750427320519,8.2272,2539.0,2538.1,3.93995508]
[1750427320721,7.398,2539.2,2538.2,0.50289551]
[1750427320886,0.21585957,2539.1,2538.2,0.50289551]
[1750427321085,0.21586094,2539.1,2538.0,1.089]
[1750427321390,3.93871361,2538.9,2538.2,3.93968565]
[1750427321599,3.93871361,2538.9,2538.0,1.089]
[1750427321600,7.395,2538.9,2538.0,1.089]
[1750427321800,3.93930838,2538.6,2538.0,1.089]
[1750427322034,3.93965778,2538.3,2538.0,0.3]
[1750427322199,0.8215,2538.1,2538.0,0.3]
[1750427322583,11.06346978,2538.9,2538.0,0.3]
[1750427322584,3.93881377,2538.9,2538.3,3.93954793]
[1750427322789,3.93961301,2538.4,2538.0,0.3]
[1750427322998,3.93995508,2538.1,2538.0,0.3]
[1750427323292,4.15589143,2538.1,2538.0,0.3]
[1750427323520,4.51577181,2538.1,2538.0,0.3]
[1750427323821,4.15588814,2538.1,2538.0,0.3]
[1750427323984,3.93995508,2538.1,2538.0,0.3]
[1750427324187,4.29983154,2538.1,2538.0,0.3]
[1750427324410,14.51575595,2538.1,2538.0,0.3]
[1750427324613,15.83135595,2538.1,2538.0,0.3]
[1750427324814,15.47146426,2538.1,2538.0,0.3]
[1750427325017,15.83130865,2538.1,2538.0,0.3]
[1750427325423,15.28131428,2538.1,2538.0,0.3]
[1750427325823,15.28076463,2538.1,2538.0,0.3]
[1750427326225,15.83076463,2538.1,2538.0,0.3]
[1750427326428,16.22791555,2538.1,2538.0,0.3]
[1750427326813,16.22788921,2538.1,2538.0,0.3]
[1750427327021,16.22788142,2538.1,2538.0,0.3]
[1750427327217,16.22788018,2538.1,2538.0,0.3]
[1750427327603,16.22787993,2538.1,2538.0,0.3]
[1750427327806,55.68987993,2538.1,2538.0,0.3]
[1750427328132,55.68985596,2538.1,2538.0,0.3]
[1750427328331,56.04927987,2538.1,2538.0,0.3]
[1750427328503,56.04927987,2538.1,2537.7,0.6667]
[1750427328504,26.34929061,2537.8,2537.7,0.6667]
[1750427328706,34.72810028,2537.8,2537.7,0.6667]
[1750427328905,34.72810028,2537.8,2537.6,0.23611568]
[1750427328906,15.16077611,2537.7,2537.6,0.23611568]
[1750427329103,3.94187511,2536.9,2535.2,4.71471865]
[1750427329306,10.58739782,2536.8,2535.7,0.7704]
[1750427329491,12.8544027,2536.7,2535.8,0.32919891]
[1750427329719,2.279,2536.7,2536.1,3.94306218]
[1750427329919,7.449,2537.0,2536.9,3.94181875]
[1750427330697,7.449,2537.2,2536.5,3.94244037]
[1750427330896,0.1666,2538.3,2537.1,0.7704]
[1750427331121,10.65908936,2538.0,2537.1,0.7704]
[1750427331346,11.06346978,2537.7,2536.2,0.7704]
[1750427331495,10.0,2537.5,2536.3,3.94275125]
[1750427331692,3.94127691,2537.3,2536.7,3.94200314]
[1750427331939,7.65974309,2537.2,2536.4,0.47131513]
[1750427332142,7.443,2537.2,2536.3,0.03942108]
[1750427332447,7.443,2537.2,2536.5,3.94244037]
[1750427332650,7.438,2537.2,2536.3,3.94275125]
[1750427332936,7.438,2537.2,2536.8,3.9418974]
[1750427333104,0.57517351,2537.1,2536.2,0.7704]
[1750427333300,9.93169543,2537.0,2536.4,3.94251686]
[1750427333645,0.57515876,2536.9,2536.3,3.9426599]
[1750427333802,3.94189742,2536.9,2536.3,3.9426599]
[1750427334143,7.436,2536.8,2536.2,0.7704]
[1750427334456,7.436,2536.8,2536.4,3.94251996]
[1750427334598,7.436,2536.8,2536.4,3.94247079]
[1750427334792,0.57546117,2536.7,2536.6,3.94225964]
[1750427335030,7.424,2537.0,2536.7,3.94204709]
[1750427335203,0.57548492,2536.9,2536.8,3.94184996]
[1750427335392,0.21580679,2536.9,2536.8,3.94184996]
[1750427335630,0.57548997,2536.9,2536.8,3.94184996]
[1750427335939,0.1666,2537.5,2537.0,3.94158765]
[1750427336169,0.57551697,2537.4,2537.1,3.94136179]
[1750427336364,10.57552092,2537.3,2537.1,3.94136179]
[1750427336540,0.57552092,2537.2,2537.1,3.94136179]
[1750427336760,0.57552092,2537.2,2536.2,0.7704]
[1750427336962,0.57552092,2537.1,2536.9,3.94179425]
[1750427337152,11.36315942,2537.4,2536.8,3.94186363]
[1750427337352,0.57518676,2537.3,2536.9,3.94180451]
[1750427337552,0.57518676,2537.2,2536.9,4.74870974]
[1750427337751,0.35949148,2537.1,2536.4,0.03941773]
[1750427337952,8.15763569,2537.0,2536.4,3.94257999]
[1750427338192,7.99103569,2536.9,2536.3,0.7549]
[1750427338367,3.94241767,2536.6,2536.0,4.69811483]
[1750427338897,7.416,2536.9,2536.0,0.7549]
[1750427339117,0.57499224,2536.8,2536.0,0.7549]
[1750427339283,0.57499407,2536.7,2536.0,0.7549]
[1750427339450,0.35936945,2536.7,2536.3,3.94265656]
[1750427339654,3.94213174,2536.7,2536.2,3.94283955]
[1750427339951,11.35982667,2536.9,2536.1,3.94306218]
[1750427339952,7.418,2536.9,2536.1,3.94306218]
[1750427340157,3.94214217,2536.7,2536.2,3.94287426]
[1750427340356,3.94207238,2536.8,2536.1,4.80709602]
[1750427340597,3.94230846,2536.6,2536.1,3.94305932]
[1750427341691,3.94219941,2536.7,2536.2,3.94289962]
[1750427341871,3.9421984,2536.7,2536.0,4.69809237]
[1750427342067,3.94228977,2536.6,2536.1,3.94300435]
[1750427342284,3.94244037,2536.5,2536.0,0.7549]
[1750427342605,10.0,2537.1,2536.0,0.7549]
[1750427342788,3.94223433,2536.7,2536.2,3.94287738]
[1750427343008,7.392,2536.8,2536.4,3.94258426]
[1750427343296,7.391,2536.9,2536.1,0.03942762]
[1750427343505,0.1666,2537.3,2536.1,0.03942762]
[1750427343506,0.57461279,2536.8,2536.5,3.94233257]
[1750427343668,3.94182136,2536.9,2536.4,3.79251757]
[1750427343870,0.5746066,2536.8,2536.5,3.94244026]
[1750427344068,3.9422793,2536.7,2536.0,0.7549]
[1750427344292,3.94220431,2536.7,2536.2,3.94289325]
[1750427344496,3.94220431,2536.7,2535.2,3.94444714]
[1750427344497,13.88331532,2536.6,2535.0,0.7501]
[1750427344672,3.94282709,2536.3,2535.3,3.94430361]
[1750427344876,0.55339003,2536.8,2536.2,3.94280496]
[1750427345121,11.90608615,2536.7,2535.7,3.94368418]
[1750427345326,0.57487896,2536.6,2536.1,0.7501]
[1750427345519,0.1666,2537.2,2536.2,0.03942496]
[1750427345707,0.57549334,2537.2,2537.0,3.94166338]
[1750427345917,0.21581824,2537.1,2537.0,3.94166338]
[1750427346095,0.35968334,2537.2,2536.9,3.94166974]
[1750427346432,0.57607461,2537.1,2536.8,0.7501]
[1750427346570,7.386,2537.3,2536.8,3.94192562]
[1750427346571,11.32727396,2537.3,2536.8,3.94192562]
[1750427346774,4.51751128,2537.2,2536.4,0.7501]
[1750427347014,4.51760267,2537.1,2536.6,3.94220863]
[1750427347219,4.30178244,2537.0,2536.5,3.94240537]
[1750427347385,3.94203958,2536.8,2536.3,3.94265411]
[1750427347712,0.36047327,2536.7,2536.2,3.94289309]
[1750427347887,0.36047327,2536.7,2536.3,3.94265176]
[1750427348072,0.36047327,2536.7,2536.1,4.69306911]
[1750427348274,0.36047327,2536.7,2536.4,3.94251759]
[1750427348479,0.36047327,2536.7,2536.5,3.94244]
[1750427348708,7.372,2537.1,2536.2,0.46931042]
[1750427349014,3.94158756,2537.1,2536.6,3.94219024]
[1750427349215,3.94195751,2536.9,2536.3,3.94263805]
[1750427349384,3.94189907,2536.9,2536.4,3.94252647]
[1750427349585,3.94175109,2537.0,2536.5,3.9423675]
[1750427349791,3.94182583,2536.9,2536.4,3.94251493]
[1750427349979,3.94174874,2537.0,2536.5,3.94242293]
[1750427350533,3.94159109,2537.1,2536.6,3.94221379]
[1750427350811,10.0,2537.3,2536.3,3.94271027]
[1750427350997,0.36165224,2537.2,2536.5,3.94244037]
[1750427351205,0.36165224,2537.2,2536.8,3.94197192]
[1750427351206,3.94135267,2537.2,2536.8,3.94197192]
[1750427351407,3.94157412,2537.1,2536.6,3.94216221]
[1750427351605,3.94157412,2537.1,2536.1,2.9951]
[1750427351606,3.94225982,2536.7,2536.1,4.69316185]
[1750427351804,3.94150953,2537.1,2536.2,3.94290643]
[1750427352011,3.94221086,2536.7,2536.2,3.94282485]
[1750427352319,0.1666,2537.1,2536.1,0.7501]
[1750427352524,3.94181443,2537.0,2536.4,3.94249467]
[1750427352819,3.94167663,2537.0,2536.4,3.94246016]
[1750427353009,0.1666,2537.1,2536.5,3.94243024]
[1750427353204,0.1666,2537.1,2536.1,4.69315532]
[1750427353503,7.354,2537.3,2536.9,3.94174711]
[1750427353816,3.94136247,2537.2,2536.7,3.9420385]
[1750427354005,11.29526565,2537.3,2536.8,3.94196382]
[1750427354212,16.35272317,2537.4,2536.4,4.75845488]
[1750427354393,3.94119733,2537.3,2536.5,3.94244037]
[1750427354585,3.94161866,2537.1,2536.6,3.94226536]
[1750427354785,10.0,2537.3,2536.4,0.8159]
[1750427354985,3.94236366,2536.6,2536.1,3.94298928]
[1750427355406,7.334,2536.5,2535.3,0.8027]
[1750427355581,0.1666,2536.3,2535.3,0.8027]
[1750427355781,3.94300461,2536.2,2535.7,3.9435851]
[1750427356086,4.30596957,2536.1,2535.6,3.94376288]
[1750427356315,0.36290191,2536.0,2535.7,3.94366212]
[1750427356520,0.57916555,2535.9,2535.7,3.94366212]
[1750427356843,6.18729298,2536.6,2535.7,4.73244565]
[1750427356844,0.57916555,2535.8,2535.7,4.73244565]
[1750427356991,0.21626364,2535.8,2535.7,4.73244565]
[1750427357392,0.21626364,2535.8,2535.7,5.57897857]
[1750427357641,0.36259935,2536.2,2536.1,3.94306218]
[1750427357791,0.36259935,2536.2,2536.1,5.93312174]
[1750427357792,0.21755918,2536.2,2536.1,5.93312174]
[1750427357987,11.43334642,2537.0,2536.1,5.93312174]
[1750427357988,0.36257096,2536.9,2536.5,3.94242314]
[1750427358187,0.58010987,2536.8,2536.6,3.9421626]
[1750427358393,6.18660132,2537.1,2536.1,5.93309439]
[1750427358593,3.94193774,2536.9,2536.4,3.94251549]
[1750427358825,0.58013984,2536.8,2536.5,3.94236847]
[1750427359027,0.58013984,2536.7,2536.6,3.9421903]
[1750427359200,0.58013481,2536.7,2536.6,3.9421903]
[1750427359403,0.58015317,2536.7,2536.6,4.73065067]
[1750427359733,0.21755906,2536.7,2536.6,5.55015067]
[1750427360209,13.94096058,2537.5,2536.9,3.94181875]
[1750427360414,0.94280143,2537.4,2536.9,3.94181875]
[1750427360613,0.94280143,2537.3,2536.6,1.60796037]
[1750427360829,0.5802147,2537.2,2536.8,3.94185746]
[1750427361014,0.5802147,2537.1,2536.9,3.9417313]
[1750427361326,0.5802147,2537.0,2536.9,3.9417313]
[1750427361623,0.5802147,2537.0,2536.6,0.8195]
[1750427361624,0.21757019,2537.0,2536.6,0.8195]
[1750427361823,0.58019994,2536.9,2536.6,4.76170107]
[1750427362032,0.21757256,2536.8,2536.6,4.76170107]
[1750427362321,3.94125937,2537.3,2536.8,3.94190523]
[1750427362322,0.36261753,2537.0,2536.8,3.94190523]
[1750427362524,0.58018633,2536.9,2536.8,3.94190523]
[1750427362732,0.2175688,2536.9,2536.8,3.94190523]
[1750427362933,0.38760667,2538.1,2537.3,3.94108154]
[1750427362934,3.94050904,2537.8,2537.3,3.94108154]
[1750427363098,4.88368159,2537.7,2537.1,3.9414508]
[1750427363297,3.94088902,2537.5,2536.9,4.75252891]
[1750427363624,0.36270513,2537.4,2537.0,3.94153337]
[1750427363824,0.58022461,2537.3,2536.9,0.8108]
[1750427364012,0.21751948,2537.2,2536.9,0.8108]
[1750427364218,0.21749316,2537.1,2536.7,3.94212953]
[1750427364401,0.1666,2537.9,2536.9,3.94173084]
[1750427364609,3.94119837,2537.3,2536.8,3.94190261]